fUST/lending_fUST_20250925
["ID","MTS","AMOUNT","RATE_DAILY","PERIOD"]
[387474880,1758739836010,-480.0,0.00019178,2]
[387474881,1758739836020,-480.0,0.00019178,2]
[387474882,1758739836030,-480.0,0.00019178,2]
[387474883,1758739836039,-480.0,0.00019178,2]
[387474884,1758739836049,-480.0,0.00019178,2]
[387474885,1758739836058,-480.0,0.00019178,2]
[387474886,1758739836068,-163.53254671,0.00019178,2]
[387474887,1758739836078,-500.0,0.00019178,2]
[387474888,1758739836087,-500.0,0.00019178,2]
[387474889,1758739836097,-500.0,0.00019178,2]
[387474890,1758739836107,-500.0,0.00019178,2]
[387474891,1758739836116,-500.0,0.00019178,2]
[387474892,1758739836125,-480.0,0.00019178,2]
[387474893,1758739836135,-500.0,0.00019178,2]
[387474894,1758739836144,-208.64480234,0.00019178,2]
[387474895,1758739836154,-480.0,0.00019178,2]
[387474896,1758739836164,-480.0,0.00019178,2]
[387474897,1758739836265,-480.0,0.00019178,2]
[387474898,1758739836275,-480.0,0.00019178,2]
[387474899,1758739836284,-480.0,0.00019178,2]
[387474900,1758739836294,-480.0,0.00019178,2]
[387474901,1758739836303,-480.0,0.00019178,2]
[387474902,1758739836313,-480.0,0.00019178,2]
[387474903,1758739836323,-252.98244034,0.00019178,2]
[387474904,1758739836332,-480.0,0.00019178,2]
[387474905,1758739836342,-480.0,0.00019178,2]
[387474906,1758739836351,-323.07144135,0.00019178,2]
[387474907,1758739836360,-480.0,0.00019178,2]
[387474908,1758739836369,-480.0,0.00019178,2]
[387474909,1758739836378,-480.0,0.00019178,2]
[387474910,1758739836387,-480.0,0.00019178,2]
[387474911,1758739836397,-480.0,0.00019178,2]
[387474912,1758739836406,-480.0,0.00019178,2]
[387474913,1758739836416,-480.0,0.00019178,2]
[387474914,1758739836425,-480.0,0.00019178,2]
[387474915,1758739836434,-480.0,0.00019178,2]
[387474916,1758739836444,-482.59736058,0.00019178,2]
[387474917,1758739836453,-480.0,0.00019178,2]
[387474918,1758739836462,-480.0,0.00019178,2]
[387474919,1758739836472,-491.85251577,0.00019178,2]
[387474920,1758739836481,-480.0,0.00019178,2]
[387474921,1758739836491,-480.0,0.00019178,2]
[387474922,1758739836500,-480.0,0.00019178,2]
[387474923,1758739836518,-480.0,0.00019178,2]
[387474924,1758739836530,-480.0,0.00019178,2]
[387474925,1758739836539,-480.0,0.00019178,2]
[387474926,1758739836548,-480.0,0.00019178,2]
[387474927,1758739836558,-480.0,0.00019178,2]
[387474928,1758739836567,-480.0,0.00019178,2]
[387474929,1758739836576,-480.0,0.00019178,2]
[387474930,1758739836586,-227.85052026,0.00019178,2]
[387474931,1758739836595,-480.0,0.00019178,2]
[387474932,1758739836605,-480.0,0.00019178,2]
[387474933,1758739836613,-480.0,0.00019178,2]
[387474934,1758739836623,-151.0,0.00019178,2]
[387474935,1758739836632,-151.0,0.00019178,2]
[387474936,1758739836641,-480.0,0.00019178,2]
[387474937,1758739836651,-480.0,0.00019178,2]
[387474938,1758739836661,-480.0,0.00019178,2]
[387474939,1758739836670,-500.0,0.00019178,2]
[387474940,1758739836680,-500.0,0.000192,2]
[387474941,1758739836691,-333.22015472,0.00019273,2]
[387474942,1758739836700,-500.0,0.0001934,2]
[387474943,1758739836709,-500.0,0.00019347,2]
[387474944,1758739836719,-500.0,0.00019347,2]
[387474945,1758739836728,-500.0,0.00019348,2]
[387474946,1758739836738,-500.0,0.00019348,2]
[387474947,1758739836748,-500.0,0.0001935,2]
[387474948,1758739836759,-500.0,0.0001935,2]
[387474949,1758739836770,-500.0,0.0001935,2]
[387474950,1758739836780,-500.0,0.0001935,2]
[387474951,1758739836789,-1000.0,0.00019351,2]
[387474952,1758739836798,-1000.0,0.00019351,2]
[387474953,1758739836807,-1000.0,0.00019351,2]
[387474954,1758739836816,-1000.0,0.00019351,2]
[387474955,1758739836826,-1000.0,0.00019351,2]
[387474956,1758739836838,-1000.0,0.00019351,2]
[387474957,1758739836850,-1000.0,0.00019351,2]
[387474958,1758739836859,-500.0,0.00019351,2]
[387474959,1758739836871,-500.0,0.00019351,2]
[387474960,1758739836882,-500.0,0.00019351,2]
[387474961,1758739836893,-500.0,0.00019351,2]
[387474962,1758739836904,-500.0,0.00019351,2]
[387474963,1758739836914,-500.0,0.00019351,2]
[387474964,1758739836923,-500.0,0.00019351,2]
[387474965,1758739836933,-500.0,0.00019351,2]
[387474966,1758739836943,-500.0,0.00019351,2]
[387474967,1758739836952,-500.0,0.00019351,2]
[387474968,1758739836969,-174.26,0.00019351,2]
[387474969,1758739836979,-500.0,0.00019351,2]
[387474970,1758739836989,-500.0,0.00019351,2]
[387474971,1758739836999,-500.0,0.00019351,2]
[387474972,1758739837008,-500.0,0.00019351,2]
[387474973,1758739837018,-500.0,0.00019351,2]
[387474974,1758739837028,-500.0,0.00019351,2]
[387474975,1758739837038,-500.0,0.00019351,2]
[387474976,1758739837048,-500.0,0.00019351,2]
[387474977,1758739837057,-500.0,0.00019351,2]
[387474978,1758739837067,-133867.53607261,0.00019352,2]
[387474986,1758739838452,-480.0,0.00019178,2]
[387474987,1758739838462,-161.84717462,0.00019178,2]
[387474988,1758739838471,-205.51830715,0.00019178,2]
[387474989,1758739838506,-280.43563798,0.00019178,2]
[387474990,1758739838515,-484.16148629,0.00019178,2]
[387474991,1758739838525,-236132.46392739,0.00019352,2]
[387474992,1758739838534,-500.0,0.00019373,2]
[387474993,1758739838544,-502.4717029,0.00019373,2]
[387474994,1758739838553,-500.0,0.00019373,2]
[387474995,1758739838563,-500.0,0.00019373,2]
[387474996,1758739838572,-500.0,0.00019373,2]
[387474997,1758739838582,-500.0,0.00019451,2]
[387474999,1758739838591,-500.0,0.00019452,2]
[387475000,1758739838600,-153.23641665,0.00019452,2]
[387475001,1758739838610,-205.63281683,0.00019452,2]
[387475002,1758739838621,-151.0,0.00019452,2]
[387475003,1758739838631,-151.0,0.00019452,2]
[387475004,1758739838642,-188.4600697,0.00019452,2]
[387475005,1758739838653,-480.0,0.00019452,2]
[387475006,1758739838663,-506.95209841,0.00019452,2]
[387475007,1758739838673,-480.0,0.00019452,2]
[387475008,1758739838685,-480.0,0.00019452,2]
[387475009,1758739838694,-480.0,0.00019452,2]
[387475010,1758739838704,-480.0,0.00019452,2]
[387475011,1758739838713,-480.0,0.00019452,2]
[387475012,1758739838724,-306.31326237,0.00019452,2]
[387475013,1758739838734,-480.0,0.00019452,2]
[387475014,1758739838744,-603.97721234,0.00019452,2]
[387475015,1758739838753,-480.0,0.00019452,2]
[387475016,1758739838762,-452.0,0.00019452,2]
[387475017,1758739838772,-307.27611667,0.00019452,2]
[387475018,1758739838782,-480.0,0.00019452,2]
[387475019,1758739838791,-480.0,0.00019452,2]
[387475020,1758739838801,-480.0,0.00019452,2]
[387475021,1758739838811,-480.0,0.00019452,2]
[387475022,1758739838820,-482.08,0.00019452,2]
[387475023,1758739838829,-480.0,0.00019452,2]
[387475024,1758739838838,-480.0,0.00019452,2]
[387475025,1758739838848,-267.43532276,0.00019452,2]
[387475026,1758739838857,-480.0,0.00019452,2]
[387475027,1758739838867,-480.0,0.00019452,2]
[387475028,1758739838876,-480.0,0.00019452,2]
[387475029,1758739838885,-422.59115298,0.00019452,2]
[387475030,1758739838894,-600.7520358,0.00019452,2]
[387475031,1758739838903,-480.0,0.00019452,2]
[387475032,1758739838913,-627.53196498,0.00019452,2]
[387475033,1758739838923,-480.0,0.00019452,2]
[387475034,1758739838932,-497.55366561,0.00019452,2]
[387475035,1758739838942,-467.46242403,0.00019452,2]
[387475036,1758739838951,-480.0,0.00019452,2]
[387475037,1758739838963,-480.0,0.00019452,2]
[387475038,1758739838972,-480.0,0.00019452,2]
[387475039,1758739838982,-434.1138053,0.00019452,2]
[387475040,1758739838992,-480.0,0.00019452,2]
[387475041,1758739839002,-480.0,0.00019452,2]
[387475042,1758739839011,-480.0,0.00019452,2]
[387475043,1758739839021,-480.0,0.00019452,2]
[387475044,1758739839031,-516.04943425,0.00019452,2]
[387475045,1758739839041,-480.0,0.00019452,2]
[387475046,1758739839052,-480.0,0.00019452,2]
[387475047,1758739839061,-480.0,0.00019452,2]
[387475048,1758739839072,-480.0,0.00019452,2]
[387475049,1758739839081,-480.0,0.00019452,2]
[387475050,1758739839091,-480.0,0.00019452,2]
[387475051,1758739839100,-483.92151366,0.00019452,2]
[387475052,1758739839109,-480.0,0.00019452,2]
[387475053,1758739839118,-480.0,0.00019452,2]
[387475054,1758739839128,-480.0,0.00019452,2]
[387475055,1758739839137,-480.0,0.00019452,2]
[387475056,1758739839147,-480.0,0.00019452,2]
[387475057,1758739839156,-480.0,0.00019452,2]
[387475058,1758739839165,-480.0,0.00019452,2]
[387475059,1758739839174,-523.25912314,0.00019452,2]
[387475060,1758739839184,-252.3971773,0.00019452,2]
[387475061,1758739839193,-480.0,0.00019452,2]
[387475062,1758739839203,-480.0,0.00019452,2]
[387475063,1758739839212,-480.0,0.00019452,2]
[387475064,1758739839222,-480.0,0.00019452,2]
[387475065,1758739839231,-480.0,0.00019452,2]
[387475066,1758739839242,-480.0,0.00019452,2]
[387475067,1758739839335,-480.0,0.00019452,2]
[387475068,1758739839345,-480.0,0.00019452,2]
[387475069,1758739839355,-391.42073882,0.00019452,2]
[387475070,1758739839363,-480.0,0.00019452,2]
[387475071,1758739839373,-480.0,0.00019452,2]
[387475072,1758739839382,-480.0,0.00019452,2]
[387475073,1758739839392,-485.33090134,0.00019452,2]
[387475074,1758739839402,-480.0,0.00019452,2]
[387475075,1758739839412,-480.0,0.00019452,2]
[387475076,1758739839422,-480.0,0.00019452,2]
[387475077,1758739839432,-480.0,0.00019452,2]
[387475078,1758739839441,-480.0,0.00019452,2]
[387475079,1758739839450,-480.0,0.00019452,2]
[387475080,1758739839459,-480.0,0.00019452,2]
[387475081,1758739839469,-479.62865664,0.00019452,2]
[387475082,1758739839478,-480.0,0.00019452,2]
[387475083,1758739839488,-480.0,0.00019452,2]
[387475084,1758739839498,-480.0,0.00019452,2]
[387475085,1758739839507,-480.0,0.00019452,2]
[387475086,1758739839517,-480.0,0.00019452,2]
[387475087,1758739839527,-480.0,0.00019452,2]
[387475088,1758739839537,-480.0,0.00019452,2]
[387475089,1758739839546,-480.0,0.00019452,2]
[387475090,1758739839555,-480.0,0.00019452,2]
[387475091,1758739839565,-480.0,0.00019452,2]
[387475092,1758739839574,-480.0,0.00019452,2]
[387475093,1758739839583,-480.0,0.00019452,2]
[387475094,1758739839592,-480.0,0.00019452,2]
[387475095,1758739839601,-401.347651,0.00019452,2]
[387475096,1758739839610,-217.12332187,0.00019452,2]
[387475097,1758739839619,-480.0,0.00019452,2]
[387475098,1758739839629,-480.0,0.00019452,2]
[387475099,1758739839639,-480.0,0.00019452,2]
[387475100,1758739839648,-480.0,0.00019452,2]
[387475101,1758739839657,-480.0,0.00019452,2]
[387475102,1758739839666,-480.0,0.00019452,2]
[387475103,1758739839675,-480.0,0.00019452,2]
[387475104,1758739839684,-480.0,0.00019452,2]
[387475105,1758739839693,-480.0,0.00019452,2]
[387475106,1758739839702,-480.0,0.00019452,2]
[387475107,1758739839711,-230.74040021,0.00019452,2]
[387475108,1758739839720,-480.0,0.00019452,2]
[387475109,1758739839730,-480.0,0.00019452,2]
[387475110,1758739839739,-480.0,0.00019452,2]
[387475111,1758739839748,-480.0,0.00019452,2]
[387475112,1758739839757,-480.0,0.00019452,2]
[387475113,1758739839767,-480.0,0.00019452,2]
[387475114,1758739839776,-480.0,0.00019452,2]
[387475115,1758739839786,-465.19225493,0.00019452,2]
[387475116,1758739839796,-480.0,0.00019452,2]
[387475117,1758739839806,-480.0,0.00019452,2]
[387475118,1758739839816,-480.0,0.00019452,2]
[387475119,1758739839825,-484.70646525,0.00019452,2]
[387475120,1758739839834,-480.0,0.00019452,2]
[387475121,1758739839843,-480.0,0.00019452,2]
[387475122,1758739839853,-480.0,0.00019452,2]
[387475123,1758739839863,-480.0,0.00019452,2]
[387475124,1758739839872,-480.0,0.00019452,2]
[387475125,1758739839882,-480.0,0.00019452,2]
[387475126,1758739839891,-470.38253359,0.00019452,2]
[387475127,1758739839901,-480.0,0.00019452,2]
[387475128,1758739839910,-480.0,0.00019452,2]
[387475129,1758739839920,-480.0,0.00019452,2]
[387475130,1758739839929,-528.87,0.00019452,2]
[387475131,1758739839939,-480.0,0.00019452,2]
[387475132,1758739839948,-480.0,0.00019452,2]
[387475133,1758739839960,-480.0,0.00019452,2]
[387475135,1758739839971,-480.0,0.00019452,2]
[387475136,1758739839982,-480.0,0.00019452,2]
[387475137,1758739839992,-480.0,0.00019452,2]
[387475138,1758739840003,-480.0,0.00019452,2]
[387475139,1758739840013,-480.0,0.00019452,2]
[387475140,1758739840022,-480.0,0.00019452,2]
[387475141,1758739840032,-480.0,0.00019452,2]
[387475142,1758739840042,-480.0,0.00019452,2]
[387475143,1758739840052,-480.0,0.00019452,2]
[387475144,1758739840062,-480.0,0.00019452,2]
[387475145,1758739840071,-480.0,0.00019452,2]
[387475146,1758739840082,-480.0,0.00019452,2]
[387475147,1758739840092,-480.0,0.00019452,2]
[387475148,1758739840102,-480.0,0.00019452,2]
[387475149,1758739840111,-480.0,0.00019452,2]
[387475150,1758739840121,-480.0,0.00019452,2]
[387475151,1758739840130,-480.0,0.00019452,2]
[387475152,1758739840139,-500.0,0.00019452,2]
[387475153,1758739840149,-500.0,0.00019473,2]
[387475154,1758739840160,-500.0,0.00019473,2]
[387475155,1758739840169,-500.0,0.00019473,2]
[387475156,1758739840179,-503.15772695,0.00019473,2]
[387475157,1758739840190,-500.0,0.00019473,2]
[387475158,1758739840199,-1000.0,0.00019592,2]
[387475159,1758739840209,-1000.0,0.00019593,2]
[387475160,1758739840218,-500.0,0.00019596,2]
[387475161,1758739840228,-500.0,0.00019623,2]
[387475162,1758739840238,-500.0,0.00019726,2]
[387475163,1758739840248,-215.50605479,0.00019726,2]
[387475164,1758739840257,-151.0,0.00019726,2]
[387475165,1758739840267,-487.53045418,0.00019726,2]
[387475166,1758739840276,-154.85913114,0.00019726,2]
[387475167,1758739840286,-480.0,0.00019726,2]
[387475168,1758739840298,-480.0,0.00019726,2]
[387475169,1758739840312,-480.0,0.00019726,2]
[387475170,1758739840325,-480.0,0.00019726,2]
[387475171,1758739840338,-628.55,0.00019726,2]
[387475172,1758739840350,-480.0,0.00019726,2]
[387475173,1758739840361,-606.67,0.00019726,2]
[387475174,1758739840375,-401.15242291,0.00019726,2]
[387475176,1758739840388,-480.0,0.00019726,2]
[387475177,1758739840399,-480.0,0.00019726,2]
[387475178,1758739840417,-488.44,0.00019726,2]
[387475179,1758739840430,-480.0,0.00019726,2]
[387475180,1758739840442,-480.0,0.00019726,2]
[387475181,1758739840454,-480.0,0.00019726,2]
[387475182,1758739840467,-480.0,0.00019726,2]
[387475183,1758739840481,-618.88,0.00019726,2]
[387475184,1758739840493,-300.95501238,0.00019726,2]
[387475185,1758739840506,-480.0,0.00019726,2]
[387475186,1758739840519,-480.0,0.00019726,2]
[387475187,1758739840532,-480.0,0.00019726,2]
[387475188,1758739840544,-507.14026634,0.00019726,2]
[387475189,1758739840557,-480.0,0.00019726,2]
[387475190,1758739840570,-480.0,0.00019726,2]
[387475191,1758739840582,-480.0,0.00019726,2]
[387475192,1758739840594,-480.0,0.00019726,2]
[387475193,1758739840605,-480.0,0.00019726,2]
[387475194,1758739840615,-480.0,0.00019726,2]
[387475195,1758739840627,-407.87,0.00019726,2]
[387475196,1758739840638,-480.0,0.00019726,2]
[387475197,1758739840652,-480.0,0.00019726,2]
[387475198,1758739840665,-596.92,0.00019726,2]
[387475199,1758739840680,-480.0,0.00019726,2]
[387475200,1758739840692,-480.0,0.00019726,2]
[387475201,1758739840704,-480.0,0.00019726,2]
[387475202,1758739840718,-200.03261799,0.00019726,2]
[387475203,1758739840731,-480.0,0.00019726,2]
[387475204,1758739840744,-480.0,0.00019726,2]
[387475205,1758739840755,-480.0,0.00019726,2]
[387475206,1758739840767,-480.0,0.00019726,2]
[387475207,1758739840777,-480.0,0.00019726,2]
[387475208,1758739840787,-480.0,0.00019726,2]
[387475209,1758739840799,-480.0,0.00019726,2]
[387475210,1758739840813,-480.0,0.00019726,2]
[387475211,1758739840828,-480.0,0.00019726,2]
[387475212,1758739840840,-480.0,0.00019726,2]
[387475213,1758739840853,-480.0,0.00019726,2]
[387475214,1758739840865,-480.0,0.00019726,2]
[387475215,1758739840876,-480.0,0.00019726,2]
[387475216,1758739840889,-480.0,0.00019726,2]
[387475217,1758739840902,-480.0,0.00019726,2]
[387475218,1758739840913,-480.0,0.00019726,2]
[387475219,1758739840924,-480.0,0.00019726,2]
[387475220,1758739840935,-480.0,0.00019726,2]
[387475221,1758739840946,-480.0,0.00019726,2]
[387475222,1758739840957,-480.0,0.00019726,2]
[387475223,1758739840971,-480.0,0.00019726,2]
[387475224,1758739840984,-480.0,0.00019726,2]
[387475225,1758739840995,-480.0,0.00019726,2]
[387475226,1758739841007,-480.0,0.00019726,2]
[387475227,1758739841018,-480.0,0.00019726,2]
[387475228,1758739841029,-266.95,0.00019726,2]
[387475229,1758739841040,-480.0,0.00019726,2]
[387475230,1758739841053,-480.0,0.00019726,2]
[387475231,1758739841064,-480.0,0.00019726,2]
[387475232,1758739841075,-480.0,0.00019726,2]
[387475233,1758739841087,-480.0,0.00019726,2]
[387475234,1758739841098,-480.0,0.00019726,2]
[387475235,1758739841110,-480.0,0.00019726,2]
[387475236,1758739841121,-240.34,0.00019726,2]
[387475237,1758739841132,-480.0,0.00019726,2]
[387475238,1758739841143,-480.0,0.00019726,2]
[387475239,1758739841155,-480.0,0.00019726,2]
[387475240,1758739841166,-480.0,0.00019726,2]
[387475241,1758739841177,-480.0,0.00019726,2]
[387475242,1758739841188,-480.0,0.00019726,2]
[387475243,1758739841199,-480.0,0.00019726,2]
[387475244,1758739841210,-480.0,0.00019726,2]
[387475245,1758739841221,-480.0,0.00019726,2]
[387475246,1758739841232,-480.0,0.00019726,2]
[387475247,1758739841243,-480.0,0.00019726,2]
[387475248,1758739841255,-480.0,0.00019726,2]
[387475249,1758739841266,-480.0,0.00019726,2]
[387475250,1758739841277,-480.0,0.00019726,2]
[387475251,1758739841288,-480.0,0.00019726,2]
[387475252,1758739841299,-480.0,0.00019726,2]
[387475253,1758739841311,-500.0,0.00019726,2]
[387475254,1758739841322,-787.4436325,0.00019895,2]
[387475255,1758739841333,-1715.53318575,0.000199,2]
[387475256,1758739841343,-500.0,0.00019921,2]
[387475257,1758739841352,-505.68458982,0.00019921,2]
[387475258,1758739841362,-564.29743427,0.00019921,2]
[387475259,1758739841372,-151.0,0.0002,2]
[387475260,1758739841381,-480.0,0.0002,2]
[387475261,1758739841391,-480.0,0.0002,2]
[387475262,1758739841400,-179.04,0.0002,2]
[387475263,1758739841410,-533.71227796,0.0002,2]
[387475264,1758739841420,-480.0,0.0002,2]
[387475265,1758739841430,-480.0,0.0002,2]
[387475266,1758739841541,-480.0,0.0002,2]
[387475267,1758739841568,-480.0,0.0002,2]
[387475268,1758739841579,-480.0,0.0002,2]
[387475269,1758739841589,-393.6591999,0.0002,2]
[387475270,1758739841599,-480.0,0.0002,2]
[387475271,1758739841608,-200.90059931,0.0002,2]
[387475272,1758739841617,-480.0,0.0002,2]
[387475273,1758739841627,-485.74,0.0002,2]
[387475274,1758739841636,-480.0,0.0002,2]
[387475275,1758739841647,-161.88339452,0.0002,2]
[387475276,1758739841656,-480.0,0.0002,2]
[387475277,1758739841666,-615.88,0.0002,2]
[387475278,1758739841675,-480.0,0.0002,2]
[387475279,1758739841684,-480.0,0.0002,2]
[387475280,1758739841693,-480.0,0.0002,2]
[387475281,1758739841702,-480.0,0.0002,2]
[387475282,1758739841712,-480.0,0.0002,2]
[387475283,1758739841721,-480.0,0.0002,2]
[387475284,1758739841731,-530.62,0.0002,2]
[387475285,1758739841740,-480.0,0.0002,2]
[387475286,1758739841750,-480.0,0.0002,2]
[387475287,1758739841760,-480.0,0.0002,2]
[387475288,1758739841771,-480.0,0.0002,2]
[387475289,1758739841782,-480.0,0.0002,2]
[387475290,1758739841792,-480.0,0.0002,2]
[387475291,1758739841804,-480.0,0.0002,2]
[387475292,1758739841816,-480.0,0.0002,2]
[387475293,1758739841826,-480.0,0.0002,2]
[387475294,1758739841836,-480.0,0.0002,2]
[387475295,1758739841846,-603.26,0.0002,2]
[387475296,1758739841855,-480.0,0.0002,2]
[387475297,1758739841866,-480.0,0.0002,2]
[387475298,1758739841877,-372.93551605,0.0002,2]
[387475299,1758739841886,-480.0,0.0002,2]
[387475300,1758739841895,-480.0,0.0002,2]
[387475301,1758739841904,-480.0,0.0002,2]
[387475302,1758739841914,-480.0,0.0002,2]
[387475303,1758739841923,-480.0,0.0002,2]
[387475304,1758739841932,-181.95274114,0.0002,2]
[387475305,1758739841941,-605.0556138,0.0002,2]
[387475306,1758739841951,-480.0,0.0002,2]
[387475307,1758739841964,-480.0,0.0002,2]
[387475308,1758739841974,-480.0,0.0002,2]
[387475309,1758739841984,-480.0,0.0002,2]
[387475310,1758739841994,-480.0,0.0002,2]
[387475311,1758739842004,-480.0,0.0002,2]
[387475312,1758739842013,-480.0,0.0002,2]
[387475313,1758739842023,-480.0,0.0002,2]
[387475314,1758739842035,-1000.0,0.00020021,2]
[387475315,1758739842046,-500.0,0.00020272,2]
[387475316,1758739842055,-157.64,0.00020273,2]
[387475317,1758739842065,-480.0,0.00020273,2]
[387475318,1758739842074,-480.0,0.00020273,2]
[387475319,1758739842084,-480.0,0.00020273,2]
[387475320,1758739842093,-480.0,0.00020273,2]
[387475321,1758739842103,-480.0,0.00020273,2]
[387475322,1758739842113,-480.0,0.00020273,2]
[387475323,1758739842123,-480.0,0.00020273,2]
[387475324,1758739842132,-480.0,0.00020273,2]
[387475325,1758739842142,-480.0,0.00020273,2]
[387475326,1758739842151,-480.0,0.00020273,2]
[387475327,1758739842160,-480.0,0.00020273,2]
[387475328,1758739842170,-480.0,0.00020273,2]
[387475329,1758739842180,-480.0,0.00020273,2]
[387475330,1758739842189,-280.94,0.00020273,2]
[387475331,1758739842199,-480.0,0.00020273,2]
[387475332,1758739842208,-480.0,0.00020273,2]
[387475333,1758739842217,-533.4,0.00020273,2]
[387475334,1758739842226,-480.0,0.00020273,2]
[387475335,1758739842236,-480.0,0.00020273,2]
[387475336,1758739842245,-480.0,0.00020273,2]
[387475337,1758739842254,-480.0,0.00020273,2]
[387475338,1758739842263,-349.0,0.00020274,2]
[387475339,1758739842272,-151.0,0.00020274,2]
[387475340,1758739842282,-520.23942347,0.00020517,2]
[387475341,1758739842291,-654.16,0.00020538,3]
[387475342,1758739842301,-327.08,0.00020538,3]
[387475343,1758739842310,-480.0,0.00020547,2]
[387475344,1758739842319,-480.0,0.00020547,2]
[387475345,1758739842329,-480.0,0.00020547,2]
[387475346,1758739842338,-480.0,0.00020547,2]
[387475347,1758739842348,-480.0,0.00020547,2]
[387475348,1758739842360,-429.10581113,0.00020547,2]
[387475349,1758739842369,-480.0,0.00020547,2]
[387475350,1758739842378,-480.0,0.00020547,2]
[387475351,1758739842388,-245.0,0.00020548,2]
[387475352,1758739842402,-176.14,0.00020563,2]
[387475353,1758739842413,-480.0,0.00020821,2]
[387475354,1758739842423,-480.0,0.00020821,2]
[387475355,1758739842432,-329.15,0.00020821,2]
[387475356,1758739842441,-1715.53318562,0.00020972,2]
[387475357,1758739842451,-500.0,0.00021094,2]
[387475358,1758739842460,-480.0,0.00021095,2]
[387475359,1758739842469,-480.0,0.00021095,2]
[387475360,1758739842479,-480.0,0.00021369,2]
[387475361,1758739842488,-480.0,0.00021643,2]
[387475362,1758739842497,-160.0,0.00021878,2]
[387475363,1758739842507,-532.2324375,0.00021878,2]
[387475364,1758739842516,-160.0,0.00021878,2]
[387475365,1758739842526,-233.62170814,0.00021878,2]
[387475366,1758739842545,-480.0,0.00021917,2]
[387475367,1758739842555,-520.23942347,0.00021955,2]
[387475368,1758739842564,-155.0,0.00022,2]
[387475369,1758739842573,-3958.46,0.00022,2]
[387475370,1758739842582,-437.41,0.00022028,2]
[387475371,1758739842591,-1715.53318562,0.00022044,2]
[387475372,1758739842601,-500.0,0.0002219,2]
[387475373,1758739842610,-480.0,0.00022191,2]
[387475374,1758739842620,-151.0,0.000222,9]
[387475375,1758739842630,-352.29,0.00022432,2]
[387475376,1758739842639,-557.66878595,0.00022465,2]
[387475377,1758739842648,-151.0,0.000228,10]
[387475378,1758739842658,-500.0,0.00022999,2]
[387475379,1758739842668,-409.21249044,0.00022999,2]
[387475380,1758739842678,-160.0,0.00023,2]
[387475381,1758739842687,-1000.0,0.00023115,2]
[387475382,1758739842697,-1715.53318562,0.00023116,2]
[387475383,1758739842706,-666.08,0.00023287,2]
[387475384,1758739842715,-520.23942347,0.00023394,2]
[387475385,1758739842725,-151.0,0.000234,5]
[387475386,1758739842734,-151.0,0.000239,8]
[387475387,1758739842744,-195.316,0.00024038,5]
[387475388,1758739842753,-1715.53318562,0.00024187,2]
[387475389,1758739842763,-333.22015471,0.0002425,2]